Portfolio,Expense Area,Cost Centre,Expense Type,Account Code,Amount,Supplier Name,SupplierId,Pay Date,Transaction No.
Resources & Corporate Governance ,Toilet Cleaning,WBC01,Personal Protective Clothing,340,7.74,Arco Limited,100015,02/02/2012,10162395
Resources & Corporate Governance ,Grounds Maintenance,WGM00,Personal Protective Clothing,340,81.65,Arco Limited,100015,02/02/2012,10162395
Resources & Corporate Governance ,Highways,WHG00,Personal Protective Clothing,340,11.67,Arco Limited,100015,02/02/2012,10162395
Resources & Corporate Governance,Handy man,WHM00,Personal Protective Clothing,340,394.32,Arco Limited,100015,02/02/2012,10162395
Resources & Corporate Governance ,Street Cleansing,WSC00,Personal Protective Clothing,340,93.32,Arco Limited,100015,02/02/2012,10162395
Resources & Corporate Governance ,Garage Internal,WVR01,Personal Protective Clothing,340,15.56,Arco Limited,100015,02/02/2012,10162395
Resources & Corporate Governance ,Domestic Waste Collection,WWC00,Personal Protective Clothing,340,163.3,Arco Limited,100015,02/02/2012,10162395
Resources & Corporate Governance ,Trade Waste Collection,WWC01,Personal Protective Clothing,340,15.56,Arco Limited,100015,02/02/2012,10162395
Resources & Corporate Governance ,Street Cleansing,WSC00,Materials,303,44.2,Arco Limited,100015,23/02/2012,10163222
Resources & Corporate Governance ,Domestic Waste Collection,WWC00,Materials,303,413.1,Arco Limited,100015,23/02/2012,10163222
Resources & Corporate Governance ,Domestic Waste Collection,WWC00,Messing Facilities,332,119.96,Arco Limited,100015,23/02/2012,10163222
Sustainable Environment ,Parks and Open Spaces,ENV20,Personal Protective Clothing,340,20.63,Arco Limited,100015,23/02/2012,10163222
Resources & Corporate Governance ,Toilet Cleaning,WBC01,Personal Protective Clothing,340,9.86,Arco Limited,100015,23/02/2012,10163222
Resources & Corporate Governance ,Grounds Maintenance,WGM00,Personal Protective Clothing,340,103.53,Arco Limited,100015,23/02/2012,10163222
Resources & Corporate Governance ,Highways,WHG00,Personal Protective Clothing,340,14.79,Arco Limited,100015,23/02/2012,10163222
Resources & Corporate Governance ,Street Cleansing,WSC00,Personal Protective Clothing,340,118.31,Arco Limited,100015,23/02/2012,10163222
Resources & Corporate Governance ,Garage Internal,WVR01,Personal Protective Clothing,340,19.72,Arco Limited,100015,23/02/2012,10163222
Resources & Corporate Governance ,Domestic Waste Collection,WWC00,Personal Protective Clothing,340,207.05,Arco Limited,100015,23/02/2012,10163222
Resources & Corporate Governance ,Trade Waste Collection,WWC01,Personal Protective Clothing,340,19.7,Arco Limited,100015,23/02/2012,10163222
Resources & Corporate Governance ,General Financial Services,GFS00,External Contractor & Operator,742,9250,Audit Commission,100020,16/02/2012,10163196
Sustainable Environment ,Recreation Grounds/Open Spaces,PKS01,External Contractor & Operator,742,2386.5,Amberol Ltd,100043,09/02/2012,10162795
,User Balance Sheet Cost Centre,BSU,Materials,303,1050.3,Autopa Ltd,100046,02/02/2012,10162384
Housing Revenue Account ,Unplanned Maintenance and Repair,UMR00,R&M External Contractors,100,802.56,AWM Electrical Contractors Ltd,100051,02/02/2012,10162589
Housing Revenue Account ,Unplanned Maintenance and Repair,UMR00,R&M External Contractors,100,1907.71,AWM Electrical Contractors Ltd,100051,02/02/2012,10162590
Housing Revenue Account ,Unplanned Maintenance and Repair,UMR00,R&M External Contractors,100,1763.44,AWM Electrical Contractors Ltd,100051,23/02/2012,10163442
Housing Revenue Account ,Unplanned Maintenance and Repair,UMR00,R&M External Contractors,100,666.97,AWM Electrical Contractors Ltd,100051,23/02/2012,10163445
Housing Revenue Account ,Unplanned Maintenance and Repair,UMR00,R&M External Contractors,100,1069.82,AWM Electrical Contractors Ltd,100051,23/02/2012,10163446
Housing Revenue Account ,Unplanned Maintenance and Repair,UMR00,R&M External Contractors,100,1686.53,AWM Electrical Contractors Ltd,100051,23/02/2012,10163447
Housing Revenue Account ,Unplanned Maintenance and Repair,UMR00,R&M External Contractors,100,1600.89,Andy Woods Landscapes,100078,16/02/2012,10163284
Housing Revenue Account ,Unplanned Maintenance and Repair,UMR00,R&M External Contractors,100,753.99,Andy Woods Landscapes,100078,23/02/2012,10163434
Capital Program ,Kitchen Modifications,HIK10,Capital Contract Payments,5000,11202.07,A C E Carpentry & Joinery Contractors Ltd,100085,02/02/2012,10161312
Capital Program ,Kitchen Modifications,HIK10,Capital Contract Payments,5000,11202.07,A C E Carpentry & Joinery Contractors Ltd,100085,02/02/2012,10162228
Capital Program ,Kitchen Modifications,HIK10,Capital Contract Payments,5000,8961.65,A C E Carpentry & Joinery Contractors Ltd,100085,16/02/2012,10162229
Capital Program ,Kitchen Modifications,HIK10,Capital Contract Payments,5000,20163.72,A C E Carpentry & Joinery Contractors Ltd,100085,16/02/2012,10162840
Capital Program ,Kitchen Modifications,HIK10,Capital Contract Payments,5000,11202.07,A C E Carpentry & Joinery Contractors Ltd,100085,23/02/2012,10163187
Economy Development & Culture,Positive Futures,LSD04,Development Activities,450,-660,Avon Valley School,100132,23/03/2011,10149771
Resources & Corporate Governance ,Grounds Maintenance,WGM00,Materials,303,1912.5,Banks Amenity Products Ltd,100133,16/02/2012,10163150
Resources & Corporate Governance ,Grounds Maintenance,WGM00,Materials,303,1912.5,Banks Amenity Products Ltd,100133,23/02/2012,10163453
Resources & Corporate Governance ,Council Tax and NNDR Collection,CTX01,External Contractor & Operator,742,24.5,Bristow & Sutor,100159,16/02/2012,10162969
Resources & Corporate Governance ,Council Tax and NNDR Collection,CTX01,External Contractor & Operator,742,3.86,Bristow & Sutor,100159,23/02/2012,10163241
Housing Revenue Account ,Control Centre (HRA),CCE00,Maintenance of Equipment,301,5184.93,British Telecommunications Plc,100161,23/02/2012,10163464
Resources & Corporate Governance ,Grounds Maintenance,WGM00,Materials,303,1652.75,Burrow Hill Ltd,100167,02/02/2012,10162345
Resources & Corporate Governance ,Grounds Maintenance,WGM00,Materials,303,533.3,Barcham Trees,100195,02/02/2012,10162337
Economy Development & Culture,General Highways Services,HIG00,External Contractor & Operator,742,491.4,Barcham Trees,100195,02/02/2012,10162387
Housing Revenue Account ,Unplanned Maintenance and Repair,UMR00,R&M External Contractors,100,2360.21,Bowen Builders,100241,02/02/2012,10162474
Capital Program ,Disabled Adaptations,HCR01,Capital Contract Payments,5000,17.61,Bowen Builders,100241,02/02/2012,10162474
Housing Revenue Account ,Unplanned Maintenance and Repair,UMR00,R&M External Contractors,100,908.28,Bowen Builders,100241,02/02/2012,10162591
Capital Program ,Disabled Adaptations,HCR01,Capital Contract Payments,5000,17.61,Bowen Builders,100241,02/02/2012,10162591
Housing Revenue Account ,Unplanned Maintenance and Repair,UMR00,R&M External Contractors,100,970,Bowen Builders,100241,16/02/2012,10162940
Housing Revenue Account ,Unplanned Maintenance and Repair,UMR00,R&M External Contractors,100,970,Bowen Builders,100241,16/02/2012,10163122
Housing Revenue Account ,Unplanned Maintenance and Repair,UMR00,R&M External Contractors,100,1257.94,Bowen Builders,100241,16/02/2012,10163292
Housing Revenue Account ,Unplanned Maintenance and Repair,UMR00,R&M External Contractors,100,441.01,Bowen Builders,100241,16/02/2012,10163293
Housing Revenue Account ,Unplanned Maintenance and Repair,UMR00,R&M External Contractors,100,580.45,Bowen Builders,100241,16/02/2012,10163294
Housing Revenue Account ,Unplanned Maintenance and Repair,UMR00,R&M External Contractors,100,1802.08,Bowen Builders,100241,16/02/2012,10163295
Housing Revenue Account ,Unplanned Maintenance and Repair,UMR00,R&M External Contractors,100,1058.77,Bowen Builders,100241,16/02/2012,10163297
Housing Revenue Account ,Unplanned Maintenance and Repair,UMR00,R&M External Contractors,100,970,Bowen Builders,100241,23/02/2012,10163565
Housing Revenue Account ,Unplanned Maintenance and Repair,UMR00,R&M External Contractors,100,2446.95,Bowen Builders,100241,23/02/2012,10163575
Housing Revenue Account ,Unplanned Maintenance and Repair,UMR00,R&M External Contractors,100,579.08,Bowen Builders,100241,23/02/2012,10163576
Resources & Corporate Governance ,Financial Services,RES10,Ref. Books Journals & Magazines,353,628.58,Cipfa Business Ltd,100341,02/02/2012,10162745
Resources & Corporate Governance ,Borough Elections,ELC00,New Equipment,300,2831,Stone Computers,100390,02/02/2012,10162468
Resources & Corporate Governance ,Maintenance of Customer Services Systems,CIS21,Other Miscellaneous Expenses,444,1813,Capita Business Services Ltd,100403,16/02/2012,10163383
Capital Program ,Replacement Cash Management System,RCM00,Capital Contract Payments,5000,4799.5,Capita Business Services Ltd,100403,23/02/2012,10163449
Sustainable Environment ,Clinical Waste,REF04,External Contractor & Operator,742,570.43,OCS Group UK Ltd t/a Cannon,100436,16/02/2012,10163160
Housing Revenue Account ,Alfred Green Close AP,AGP01,New Equipment,300,2224.5,Curtains By Design,100526,23/02/2012,10163313
Resources & Corporate Governance ,Domestic Waste Collection,WWC00,Vehicle Repair and Maintenance,200,718.77,Chambers Engineering Ltd,100537,09/02/2012,10162791
Capital Program ,RG Disabled Facilities,REN01,Capital Grants,5014,4538,Bob Doyle,100575,09/02/2012,10162816
Capital Program ,Kitchen Modifications,HIK10,Capital Contract Payments,5000,11090.63,JADA Building & Maintenance Services Ltd,100583,09/02/2012,10161240
Capital Program ,Kitchen Modifications,HIK10,Capital Contract Payments,5000,1100,JADA Building & Maintenance Services Ltd,100583,09/02/2012,10161565
Capital Program ,Kitchen Modifications,HIK10,Capital Contract Payments,5000,13308.75,JADA Building & Maintenance Services Ltd,100583,09/02/2012,10162227
Capital Program ,Kitchen Modifications,HIK10,Capital Contract Payments,5000,11090.63,JADA Building & Maintenance Services Ltd,100583,09/02/2012,10162576
Capital Program ,Kitchen Modifications,HIK10,Capital Contract Payments,5000,1424.6,JADA Building & Maintenance Services Ltd,100583,23/02/2012,10162786
Capital Program ,Kitchen Modifications,HIK10,Capital Contract Payments,5000,13308.75,JADA Building & Maintenance Services Ltd,100583,23/02/2012,10162838
Capital Program ,Kitchen Modifications,HIK10,Capital Contract Payments,5000,13308.75,JADA Building & Maintenance Services Ltd,100583,23/02/2012,10163186
Housing Revenue Account ,Unplanned Maintenance and Repair,UMR00,R&M External Contractors,100,4133.29,JADA Building & Maintenance Services Ltd,100583,16/02/2012,10163291
Housing Revenue Account ,Unplanned Maintenance and Repair,UMR00,R&M External Contractors,100,4405.99,JADA Building & Maintenance Services Ltd,100583,23/02/2012,10163436
Housing Revenue Account ,Unplanned Maintenance and Repair,UMR00,R&M External Contractors,100,3835.61,Lee Davies Decorating,100600,16/02/2012,10163298
Housing Revenue Account ,Repainting Schemes,UMR02,R&M External Contractors,100,800.01,Lee Davies Decorating,100600,16/02/2012,10163298
Housing Revenue Account ,Albert Square AP,AGP20,Gas,131,2506.93,ESPO,100641,09/02/2012,10161902
Economy Development & Culture,Art Gallery and Museum,AGM00,Gas,131,2030.27,ESPO,100641,16/02/2012,10163245
Housing Revenue Account ,Albert Square AP,AGP20,Gas,131,2597.17,ESPO,100641,23/02/2012,10163261
Resources & Corporate Governance ,Domestic Waste Collection,WWC00,Agency Staff,3,426.6,First Personnel Group Plc,100807,02/02/2012,10162251
Resources & Corporate Governance ,Domestic Waste Collection,WWC00,Agency Staff,3,432,First Personnel Group Plc,100807,02/02/2012,10162706
Resources & Corporate Governance ,Domestic Waste Collection,WWC00,Agency Staff,3,432,First Personnel Group Plc,100807,23/02/2012,10162974
Resources & Corporate Governance ,Domestic Waste Collection,WWC00,External Contractor & Operator,742,1265,Container Services UK Limited,100811,23/02/2012,10163532
,Balance Sheet,BS,Car Leasing Scheme,9244,3088.68,Lex Autolease Ltd,100844,16/02/2012,10163102
Resources & Corporate Governance ,Town Hall,OFF00,Materials,303,867,Greenham,100890,09/02/2012,10162701
Housing Revenue Account ,Estate Management,MAN22,Movement Incentives,454,580,David Gilkes & Sons Ltd,100913,02/02/2012,10162534
Housing Revenue Account ,Estate Management,MAN22,Movement Incentives,454,580,David Gilkes & Sons Ltd,100913,09/02/2012,10163017
Housing Revenue Account ,Estate Management,MAN22,Movement Incentives,454,500,David Gilkes & Sons Ltd,100913,23/02/2012,10163406
Resources & Corporate Governance ,Corporate Property Management,CPM00,Asset Management Expenses,448,750,Godfrey-Payton Chartered Surveyors,100937,16/02/2012,10162677
Capital Program ,Bathroom Modifications,HIS01,Capital Contract Payments,5000,21150,B Hartwell Plumbers Ltd,100989,09/02/2012,10162457
Economy Development & Culture,Planning General/Income,PLN00,Ref. Books Journals & Magazines,353,1188,Haymarket Publishing Services Ltd,101038,09/02/2012,10162334
Housing Revenue Account ,Control Centre (HRA),CCE00,Maintenance of Equipment,301,13593,Chubb Systems LTD,101154,02/02/2012,10162498
Resources & Corporate Governance ,Street Cleansing,WSC00,Materials,303,644.8,Imperial Polythene Products Limited,101157,09/02/2012,10162572
Resources & Corporate Governance ,Street Cleansing,WSC00,Materials,303,742,Imperial Polythene Products Limited,101157,09/02/2012,10162622
Resources & Corporate Governance ,Grounds Maintenance,WGM00,Materials,303,729.6,James Coles & Sons (Nurseries) Ltd,101165,02/02/2012,10162244
Resources & Corporate Governance ,Grounds Maintenance,WGM00,Materials,303,1954.5,James Coles & Sons (Nurseries) Ltd,101165,16/02/2012,10162970
Capital Program ,Kitchen Modifications,HIK10,Capital Contract Payments,5000,1107.68,M & J Engineers Ltd,101278,09/02/2012,10162755
Housing Revenue Account ,Repainting Schemes,UMR02,R&M External Contractors,100,3400.97,MBG Decorators (Rugby Ltd),101288,16/02/2012,10163285
Housing Revenue Account ,Repainting Schemes,UMR02,R&M External Contractors,100,3325.63,MBG Decorators (Rugby Ltd),101288,16/02/2012,10163286
Housing Revenue Account ,Repainting Schemes,UMR02,R&M External Contractors,100,2266.99,MBG Decorators (Rugby Ltd),101288,23/02/2012,10163569
Resources & Corporate Governance ,Domestic Waste Collection,WWC00,Vehicle Repair and Maintenance,200,1041.06,Noden Truck Centre Ltd,101368,23/02/2012,10163413
Resources & Corporate Governance ,Street Cleansing,WSC00,Vehicle Repair and Maintenance,200,1135.77,Noden Truck Centre Ltd,101368,23/02/2012,10163414
Resources & Corporate Governance ,Domestic Waste Collection,WWC00,Vehicle Repair and Maintenance,200,577.92,Noden Truck Centre Ltd,101368,23/02/2012,10163534
Economy Development & Culture,Visitor Centre,VSC00,Events Tickets - Zero Rated,1405,1036.31,National Express Ltd,101392,09/02/2012,10162746
Capital Program ,RG Disabled Facilities,REN01,Capital Grants,5014,538.2,Heart of England Housing Association,101400,09/02/2012,10163039
Capital Program ,RG Disabled Facilities,REN01,Capital Grants,5014,1950.99,Heart of England Housing Association,101400,23/02/2012,10163192
Housing Revenue Account ,Sheltered Housing,AGP00,Telephone Expenses,371,5.74,Orange Personal Communications,101404,16/02/2012,10162428
Sustainable Environment ,Head of Environmental Services,ENV00,Telephone Expenses,371,9.25,Orange Personal Communications,101404,16/02/2012,10162428
Resources & Corporate Governance ,WSU Depot,WDP00,Telephone Expenses,371,473.57,Orange Personal Communications,101404,16/02/2012,10162428
,Balance Sheet,BS,Revenue Grants,9889,659,Osborne Richardson,101412,16/02/2012,10163271
Resources & Corporate Governance,Central Business Support Services,CSS15,External Printing,352,989,Polycopy,101428,16/02/2012,10162877
Resources & Corporate Governance ,Grounds Maintenance,WGM00,Vehicle Running Costs,201,630,Post Office Ltd,101429,09/02/2012,10163080
Resources & Corporate Governance ,Highways,WHG00,Vehicle Running Costs,201,330,Post Office Ltd,101429,09/02/2012,10163080
Resources & Corporate Governance ,Street Cleansing,WSC00,Vehicle Running Costs,201,210,Post Office Ltd,101429,09/02/2012,10163080
Resources & Corporate Governance ,Domestic Waste Collection,WWC00,Vehicle Running Costs,201,450,Post Office Ltd,101429,09/02/2012,10163080
Resources & Corporate Governance ,Domestic Waste Collection,WWC00,Vehicle Running Costs,201,815,Post Office Ltd,101429,16/02/2012,10163343
Resources & Corporate Governance ,Maintenance of Customer Services Systems,CIS21,Software Maintenance,374,4814,Puma Computer Systems Ltd,101436,16/02/2012,10162600
Sustainable Inclusive Communities,Woodside Park,TVR00,Electricity,130,1072.19,E.ON,101479,09/02/2012,10161576
Sustainable Inclusive Communities,Woodside Park,TVR00,Electricity,130,971.55,E.ON,101479,16/02/2012,10162807
Resources & Corporate Governance ,Highways,WHG00,Materials,303,1732.25,Lafarge Aggregates Limited,101503,02/02/2012,10161760
Resources & Corporate Governance ,Highways,WHG00,Materials,303,676,Lafarge Aggregates Limited,101503,02/02/2012,10161881
Capital Program ,Kitchen Modifications,HIK10,Capital Contract Payments,5000,36800,Reeds Plumbing & Heating Contractors Ltd,101504,23/02/2012,10162839
Housing Revenue Account ,Unplanned Maintenance and Repair,UMR00,R&M External Contractors,100,3095.54,Reeds Plumbing & Heating Contractors Ltd,101504,16/02/2012,10163280
,User Balance Sheet Cost Centre,BSU,Section Agreements,9865,1594,Ryton-On-Dunsmore Parish Council,101522,09/02/2012,10163043
Economy Development & Culture,Art Gallery and Museum,AGM00,Postage & Distribution,370,3.03,Royal Mail,101554,02/02/2012,10162383
Economy Development & Culture,Building Control Services,BCS00,Postage & Distribution,370,5.01,Royal Mail,101554,02/02/2012,10162383
Economy Development & Culture,Building Regulation Fee Earning Account,BCS99,Postage & Distribution,370,6.64,Royal Mail,101554,02/02/2012,10162383
Economy Development & Culture,Car Parks General,CPK01,Postage & Distribution,370,29.93,Royal Mail,101554,02/02/2012,10162383
Resources & Corporate Governance,Central Business Support Services,CSS15,Postage & Distribution,370,345.93,Royal Mail,101554,02/02/2012,10162383
Resources & Corporate Governance ,Council Tax and NNDR Collection,CTX01,Postage & Distribution,370,381.92,Royal Mail,101554,02/02/2012,10162383
Economy Development & Culture,Decrim. of Car Parking on street parking,DPE02,Postage & Distribution,370,119.72,Royal Mail,101554,02/02/2012,10162383
Resources & Corporate Governance ,Electoral Registration,ERG00,Postage & Distribution,370,9.84,Royal Mail,101554,02/02/2012,10162383
Sustainable Inclusive Communities,Housing Benefit Administration,HBA00,Postage & Distribution,370,123.48,Royal Mail,101554,02/02/2012,10162383
Housing Revenue Account ,Supervision and Management General,MAN00,Postage & Distribution,370,110.82,Royal Mail,101554,02/02/2012,10162383
Economy Development & Culture,Planning General/Income,PLN00,Postage & Distribution,370,61.42,Royal Mail,101554,02/02/2012,10162383
Economy Development & Culture,Visitor Centre,VSC00,Postage & Distribution,370,1.1,Royal Mail,101554,02/02/2012,10162383
Resources & Corporate Governance ,General Administration,WAD00,Postage & Distribution,370,41.44,Royal Mail,101554,02/02/2012,10162383
Resources & Corporate Governance,Central Business Support Services,CSS15,Postage & Distribution,370,500,Royal Mail,101554,16/02/2012,10163066
Resources & Corporate Governance,Handy man,WHM00,External Contractor & Operator,742,1695,Rugby Plastering Services,101602,16/02/2012,10162528
Housing Revenue Account ,Unplanned Maintenance and Repair,UMR00,R&M External Contractors,100,2110.12,Rugby Plastering Services,101602,02/02/2012,10162587
Resources & Corporate Governance,Handy man,WHM00,External Contractor & Operator,742,1398,Rugby Plastering Services,101602,16/02/2012,10163310
Housing Revenue Account ,Unplanned Maintenance and Repair,UMR00,R&M External Contractors,100,1999.8,Rugby Plastering Services,101602,23/02/2012,10163448
Sustainable Environment ,Caldecott Park/Town Centre Area,PKS00,Water Services,143,4271.16,Severn Trent Water Ltd,101610,09/02/2012,10162302
Sustainable Environment ,Cemeteries General,CEM00,Water Services,143,599.18,Severn Trent Water Ltd,101610,02/02/2012,10162595
Sustainable Environment ,Caldecott Park/Town Centre Area,PKS00,Water Services,143,2942.56,Severn Trent Water Ltd,101610,02/02/2012,10162605
Sustainable Environment ,Recreation Grounds/Open Spaces,PKS01,Water Services,143,582.75,Severn Trent Water Ltd,101610,16/02/2012,10163068
Resources & Corporate Governance ,WSU Depot,WDP00,Water Services,143,505.83,Severn Trent Water Ltd,101610,23/02/2012,10163331
Economy Development & Culture,James St. Multi-storey Car Park,CPK02,Water Services,143,886.36,Severn Trent Water Ltd,101610,23/02/2012,10163387
Economy Development & Culture,Car Parks General,CPK01,Water Services,143,726.26,Severn Trent Water Ltd,101610,23/02/2012,10163577
Resources & Corporate Governance ,IT Procurement,CMP00,IT Capital Expenditure,5025,2590,Siemens Enterprise Communications Ltd,101616,02/02/2012,10162599
Capital Program ,RG Disabled Facilities,REN01,Capital Grants,5014,1830,Stannah Stairlifts Ltd,101623,09/02/2012,10162817
Resources & Corporate Governance,Corporate Property R&M,CPA01,R&M External Contractors,100,1038.7,Secom Plc,101671,02/02/2012,10162260
Resources & Corporate Governance ,Domestic Waste Collection,WWC00,Vehicle Running Costs,201,1876,HI-Q Motorway,101736,02/02/2012,10162638
Resources & Corporate Governance ,Domestic Waste Collection,WWC00,Vehicle Running Costs,201,248,HI-Q Motorway,101736,02/02/2012,10162639
Resources & Corporate Governance ,Trade Waste Collection,WWC01,Vehicle Running Costs,201,406,HI-Q Motorway,101736,02/02/2012,10162639
Resources & Corporate Governance ,Domestic Waste Collection,WWC00,Vehicle Running Costs,201,998,HI-Q Motorway,101736,02/02/2012,10162641
Resources & Corporate Governance ,Domestic Waste Collection,WWC00,Vehicle Running Costs,201,398,HI-Q Motorway,101736,02/02/2012,10162660
Resources & Corporate Governance ,Trade Waste Collection,WWC01,Vehicle Running Costs,201,178,HI-Q Motorway,101736,02/02/2012,10162660
Resources & Corporate Governance ,Street Cleansing,WSC00,Vehicle Running Costs,201,62,HI-Q Motorway,101736,16/02/2012,10163161
Resources & Corporate Governance ,Domestic Waste Collection,WWC00,Vehicle Running Costs,201,1015,HI-Q Motorway,101736,16/02/2012,10163161
Resources & Corporate Governance ,Street Cleansing,WSC00,Vehicle Running Costs,201,246.92,HI-Q Motorway,101736,23/02/2012,10163527
Resources & Corporate Governance ,Domestic Waste Collection,WWC00,Vehicle Running Costs,201,514.13,HI-Q Motorway,101736,23/02/2012,10163527
Resources & Corporate Governance ,Trade Waste Collection,WWC01,Vehicle Running Costs,201,245.13,HI-Q Motorway,101736,23/02/2012,10163527
Resources & Corporate Governance ,Maintenance of Customer Services Systems,CIS21,Subscriptions,421,440,University Of Wolverhampton,101815,16/02/2012,10162226
Economy Development & Culture,Car Parks General,CPK01,Telephone Expenses,371,48.6,Vodafone Corporate Ltd,101831,09/02/2012,10162374
Economy Development & Culture,Decrim. of Car Parking on street parking,DPE02,Telephone Expenses,371,954.26,Vodafone Corporate Ltd,101831,09/02/2012,10162374
Housing Revenue Account ,Sheltered Housing,AGP00,Telephone Expenses,371,338.35,Vodafone Corporate Ltd,101831,02/02/2012,10162380
Economy Development & Culture,Building Control Services,BCS00,Telephone Expenses,371,2.58,Vodafone Corporate Ltd,101831,02/02/2012,10162380
Economy Development & Culture,Building Regulation Fee Earning Account,BCS99,Telephone Expenses,371,3.42,Vodafone Corporate Ltd,101831,02/02/2012,10162380
Housing Revenue Account ,Control Centre (HRA),CCE00,Telephone Expenses,371,20.14,Vodafone Corporate Ltd,101831,02/02/2012,10162380
Resources & Corporate Governance ,Council Tax and NNDR Collection,CTX01,Telephone Expenses,371,6,Vodafone Corporate Ltd,101831,02/02/2012,10162380
Sustainable Inclusive Communities,Housing Options Team,HOT00,Telephone Expenses,371,49.31,Vodafone Corporate Ltd,101831,02/02/2012,10162380
Housing Revenue Account ,Supervision and Management General,MAN00,Telephone Expenses,371,376.54,Vodafone Corporate Ltd,101831,02/02/2012,10162380
Housing Revenue Account ,Estate Management,MAN22,Telephone Expenses,371,54,Vodafone Corporate Ltd,101831,02/02/2012,10162380
Housing Revenue Account ,Multi-Storey Flats,MSF00,Telephone Expenses,371,9.74,Vodafone Corporate Ltd,101831,02/02/2012,10162380
Resources & Corporate Governance ,Trade Waste Collection,WWC01,Removal of Waste - WCC,711,44268,Warwickshire County Council,101840,09/02/2012,10162620
Sustainable Environment ,Recreation Grounds/Open Spaces,PKS01,External Contractor & Operator,742,1000,Warwickshire Wildlife Trust,101860,16/02/2012,10163151
Resources & Corporate Governance ,Human Resources Centralised Services,RES31,Training fees,11,899,West Midlands Councils,101880,09/02/2012,10163037
Economy Development & Culture,Economic Development General,ECD00,Development Activities,450,627.61,Warwickshire County Council,101893,16/02/2012,10163274
Economy Development & Culture,Decrim. of Car Parking on street parking,DPE02,Contributions & Donations,1100,139912,Warwickshire County Council,101893,23/02/2012,10163578
Economy Development & Culture,Planning General/Income,PLN00,Consultancy Costs,740,5772,Warwickshire County Council,101893,23/02/2012,10163583
Resources & Corporate Governance,Handy man,WHM00,External Contractor & Operator,742,1364.4,Darren Wilson Roofing Ltd,101911,02/02/2012,10162513
Capital Program ,Heating Upgrades,HIM01,Capital Contract Payments,5000,5069.63,Adroit Services Ltd,101939,02/02/2012,10162194
Capital Program ,Heating Upgrades,HIM01,Capital Contract Payments,5000,7604.44,Adroit Services Ltd,101939,02/02/2012,10162578
Capital Program ,Heating Upgrades,HIM01,Capital Contract Payments,5000,7604.44,Adroit Services Ltd,101939,16/02/2012,10163228
Capital Program ,Heating Upgrades,HIM01,Capital Contract Payments,5000,2109.34,Adroit Services Ltd,101939,16/02/2012,10163229
Capital Program ,Open Spaces Refurbishment,LEI08,Capital Contract Payments,5000,4320,Furnitubes International Ltd,102084,09/02/2012,10162761
Resources & Corporate Governance ,"Communications, Consultation and Information Team",BTR20,Publicity & Marketing,377,1573,Johnston Publishing Ltd,107468,09/02/2012,10162802
Resources & Corporate Governance,Corporate Property R&M,CPA01,R&M External Contractors,100,550,Ser-Tec Systems Ltd,108074,02/02/2012,10162211
Resources & Corporate Governance,Corporate Property R&M,CPA01,R&M External Contractors,100,516,Ser-Tec Systems Ltd,108074,09/02/2012,10162603
Resources & Corporate Governance,Corporate Property R&M,CPA01,R&M External Contractors,100,780,Ser-Tec Systems Ltd,108074,16/02/2012,10163027
,Balance Sheet,BS,Car Loan Scheme,9261,3350,RICHARD PROTO CARS,108153,14/02/2012,10163177
Resources & Corporate Governance ,Central Telephone Service,TEL00,Telephone Expenses,371,988.67,British Telecommunications PLC,108425,02/02/2012,10162269
Resources & Corporate Governance,Central Business Support Services,CSS15,Stationery Supplies,350,867,Bank Security Printing Ltd,108686,09/02/2012,10163067
Resources & Corporate Governance ,Garage Internal,WVR01,Materials,303,34378.85,Watson Petroleum,110361,02/02/2012,10162331
Resources & Corporate Governance,Corporate Property R&M,CPA01,R&M External Contractors,100,1055.35,Croxford Electrical,110451,09/02/2012,10162613
Resources & Corporate Governance,Corporate Property R&M,CPA01,R&M External Contractors,100,966.03,Croxford Electrical,110451,16/02/2012,10163002
Resources & Corporate Governance,Corporate Property R&M,CPA01,R&M External Contractors,100,427.97,Croxford Electrical,110451,16/02/2012,10163023
Capital Program ,Purchase of Vehicles,VHC00,Miscellaneous Capital Expenditure,5020,3300,Vision Techniques (UK) LTD,111526,09/02/2012,10162891
Resources & Corporate Governance,Central Business Support Services,CSS15,Photocopying,354,4486.5,Ricoh UK Limited,111532,02/02/2012,10162290
Resources & Corporate Governance,Central Business Support Services,CSS15,Photocopying,354,448.8,Ricoh UK Limited,111532,02/02/2012,10162415
Resources & Corporate Governance,Central Business Support Services,CSS15,Photocopying,354,4353.39,Ricoh UK Limited,111532,23/02/2012,10163513
Resources & Corporate Governance ,Council Tax and NNDR Collection,CTX01,Other,763,2325,Experian Ltd,112302,09/02/2012,10162893
Resources & Corporate Governance ,Maintenance of Customer Services Systems,CIS21,Training fees,11,760,Civica UK Ltd,112724,23/02/2012,10163396
Resources & Corporate Governance ,Maintenance of Customer Services Systems,CIS21,Software Maintenance,374,19519.06,Civica UK Ltd,112724,23/02/2012,10163458
Resources & Corporate Governance ,Domestic Waste Collection,WWC00,Agency Staff,3,1023.17,Extra Personnel Limited,112996,09/02/2012,10162205
Resources & Corporate Governance ,Domestic Waste Collection,WWC00,Agency Staff,3,1016.74,Extra Personnel Limited,112996,02/02/2012,10162530
Resources & Corporate Governance ,Domestic Waste Collection,WWC00,Agency Staff,3,1107.14,Extra Personnel Limited,112996,09/02/2012,10162883
Resources & Corporate Governance ,Domestic Waste Collection,WWC00,Agency Staff,3,1107.14,Extra Personnel Limited,112996,23/02/2012,10163210
Resources & Corporate Governance ,Domestic Waste Collection,WWC00,Agency Staff,3,1016.74,Extra Personnel Limited,112996,23/02/2012,10163494
Economy Development & Culture,Ken Marriott Leisure Centre,KML00,External Contractor & Operator,742,24306.04,DC Leisure Management Ltd (Otium),114443,02/02/2012,10162758
Housing Revenue Account ,Control Centre (HRA),CCE00,New Equipment,300,81,Star Technology Services,114533,16/02/2012,10161554
Economy Development & Culture,Car Parks General,CPK01,New Equipment,300,16.2,Star Technology Services,114533,16/02/2012,10161554
Economy Development & Culture,Decrim. of Car Parking on street parking,DPE02,New Equipment,300,64.8,Star Technology Services,114533,16/02/2012,10161554
Economy Development & Culture,Art Gallery and Museum,AGM00,Telephone Expenses,371,592.08,Star Technology Services,114533,16/02/2012,10161554
Resources & Corporate Governance ,Customer and Information Strategy,CIS10,Telephone Expenses,371,2242.2,Star Technology Services,114533,16/02/2012,10161554
Resources & Corporate Governance ,Council Tax and NNDR Collection,CTX01,Telephone Expenses,371,81,Star Technology Services,114533,16/02/2012,10161554
Economy Development & Culture,Visitor Centre,VSC00,Telephone Expenses,371,511.08,Star Technology Services,114533,16/02/2012,10161554
Resources & Corporate Governance ,WSU Depot,WDP00,Telephone Expenses,371,81,Star Technology Services,114533,16/02/2012,10161554
Resources & Corporate Governance ,Customer and Information Strategy,CIS10,Software Maintenance,374,2040,Star Technology Services,114533,16/02/2012,10161554
Resources & Corporate Governance ,Customer and Information Strategy,CIS10,Hardware Maintenance,376,2271,Star Technology Services,114533,16/02/2012,10161554
Housing Revenue Account ,Unplanned Maintenance and Repair,UMR00,R&M External Contractors,100,1341.4,Temple Lifts Ltd,114738,16/02/2012,10163018
Sustainable Inclusive Communities,Housing Options Team,HOT00,Rents,140,650,Diamond House Hotel,115070,02/02/2012,10162774
Economy Development & Culture,Visitor Centre,VSC00,Purchases for Resale,305,600,Richard Lindon & Co,116703,02/02/2012,10162542
Sustainable Environment ,Cemeteries General,CEM00,Electricity,130,40.45,Southern Electric,118976,16/02/2012,10163266
Sustainable Environment ,Caldecott Park/Town Centre Area,PKS00,Electricity,130,18.02,Southern Electric,118976,16/02/2012,10163266
Sustainable Environment ,Recreation Grounds/Open Spaces,PKS01,Electricity,130,-390.44,Southern Electric,118976,16/02/2012,10163266
Sustainable Environment ,Administration,PKS12,Electricity,130,314.9,Southern Electric,118976,16/02/2012,10163266
Resources & Corporate Governance ,WSU Depot,WDP00,Electricity,130,803.33,Southern Electric,118976,16/02/2012,10163266
Sustainable Environment ,Cemeteries General,CEM00,External Contractor & Operator,742,648,MPCS,119391,16/02/2012,10163234
Economy Development & Culture,Decrim of NBBC on-street parking,DPE03,Other Miscellaneous Expenses,444,5747.5,Capita Software Services,119406,02/02/2012,10162781
Resources & Corporate Governance ,Street Cleansing,WSC00,Agency Staff,3,61.5,G-Staff Ltd,120173,23/02/2012,10163209
Resources & Corporate Governance ,Domestic Waste Collection,WWC00,Agency Staff,3,364.48,G-Staff Ltd,120173,23/02/2012,10163209
Resources & Corporate Governance ,Street Cleansing,WSC00,Agency Staff,3,61.5,G-Staff Ltd,120173,23/02/2012,10163490
Resources & Corporate Governance ,Domestic Waste Collection,WWC00,Agency Staff,3,820.08,G-Staff Ltd,120173,23/02/2012,10163490
Resources & Corporate Governance ,"Communications, Consultation and Information Team",BTR20,Publicity & Marketing,377,10588,Jadu Ltd,120407,23/02/2012,10158830
Housing Revenue Account ,Estate Management,MAN22,Movement Incentives,454,5663.9,REDACTED PERSONAL DATA,120595,02/02/2012,10162536
Resources & Corporate Governance ,Maintenance of Customer Services Systems,CIS21,Software Maintenance,374,1560,Iken Business Ltd,121287,16/02/2012,10162294
Resources & Corporate Governance ,Maintenance of Customer Services Systems,CIS21,Software Maintenance,374,2055.8,Northgate Information Solutions UK Ltd,121606,16/02/2012,10162335
Resources & Corporate Governance ,Maintenance of Customer Services Systems,CIS21,Software Maintenance,374,2490,Northgate Information Solutions UK Ltd,121606,16/02/2012,10162336
Resources & Corporate Governance ,Maintenance of Customer Services Systems,CIS21,Software Maintenance,374,30774.36,Northgate Information Solutions UK Ltd,121606,09/02/2012,10163074
Resources & Corporate Governance ,Street Cleansing,WSC00,Other Insurance Excesses,441,5000,Travelers Insurance Co,121642,02/02/2012,10162555
Resources & Corporate Governance ,Maintenance of Customer Services Systems,CIS21,Software Maintenance,374,4301.99,Covalent Software Limited,122520,16/02/2012,10162582
Resources & Corporate Governance ,Domestic Waste Collection,WWC00,Contract Hire,220,1112.16,GPL Hire & Services,122556,23/02/2012,10163495
Housing Revenue Account ,Maintenance of Open Spaces,MOS00,External Contractor & Operator,742,480.79,Brinklow Quarry,122921,02/02/2012,10161270
Resources & Corporate Governance ,Highways,WHG00,External Contractor & Operator,742,5.27,Brinklow Quarry,122921,02/02/2012,10161270
Housing Revenue Account ,Maintenance of Open Spaces,MOS00,External Contractor & Operator,742,439.37,Brinklow Quarry,122921,16/02/2012,10162875
Resources & Corporate Governance ,Central Telephone Service,TEL00,Telephone Expenses,371,1326.19,Cable & Wireless,123224,16/02/2012,10163064
Resources & Corporate Governance ,Domestic Waste Collection,WWC00,Materials,303,2298,Krishna Enterprises Ltd,123590,23/02/2012,10162971
Housing Revenue Account ,Estate Management,MAN22,Movement Incentives,454,1000,REDACTED PERSONAL DATA,123660,23/02/2012,10163587
Capital Program ,RG Disabled Facilities,REN01,Capital Grants,5014,1675,Wessex Lifts,125593,23/02/2012,10163504
Sustainable Environment,Regulatory Services,REG00,Software/Equipment Licences,379,983.81,Airwave Solutions Limited,126436,16/02/2012,10163269
Resources & Corporate Governance ,Maintenance of Customer Services Systems,CIS21,Hardware Maintenance,376,2325,Solutech Limited,126545,16/02/2012,10163135
Sustainable Environment ,Anti-Social Behaviour,CAD02,Development Activities,450,495,"Rapid Vision Systems Ltd.,",128670,02/02/2012,10162393
Capital Program ,Electric to Gas Conversions,HIM04,Capital Contract Payments,5000,790.8,National Grid Gas plc,130213,23/02/2012,10163597
Sustainable Inclusive Communities,Woodside Park,TVR00,External Contractor & Operator,742,2640,Rugby First Limited - Town Centre,130214,09/02/2012,10162510
Capital Program ,Moving in Grants,MIG00,Capital Contract Payments,5000,1500,Rugby First Limited - Town Centre,130214,23/02/2012,10163379
Capital Program ,Youth Club Development,CGR05,Capital Grants,5014,3550,Warwickshire Association of Youth Clubs,130919,23/02/2012,10163275
Economy Development & Culture,Economic Development General,ECD00,Development Activities,450,1800,Rugby FM,131249,02/02/2012,10161630
Sustainable Environment ,Recreation Grounds/Open Spaces,PKS01,External Contractor & Operator,742,875,I D Welding & Fabrications,131407,02/02/2012,10162467
Capital Program ,Open Spaces Refurbishment,LEI08,Capital Contract Payments,5000,941,I D Welding & Fabrications,131407,09/02/2012,10162797
Economy Development & Culture,Car Parks General,CPK01,Cash Collection,744,118.37,Jade Security Services Ltd,131711,16/02/2012,10163013
Economy Development & Culture,Decrim. of Car Parking on street parking,DPE02,Cash Collection,744,473.47,Jade Security Services Ltd,131711,16/02/2012,10163013
Economy Development & Culture,Car Parks General,CPK01,Cash Collection,744,1019.28,Jade Security Services Ltd,131711,09/02/2012,10163014
Housing Revenue Account ,Asbestos Surveys,UMR05,R&M External Contractors,100,6020,Challen Commercial Investigations Ltd T/A Ensafe,131876,02/02/2012,10162678
Capital Program ,Kitchen Modifications,HIK10,Capital Contract Payments,5000,1140,Challen Commercial Investigations Ltd T/A Ensafe,131876,02/02/2012,10162678
Capital Program ,Heating Upgrades,HIM01,Capital Contract Payments,5000,1155,Challen Commercial Investigations Ltd T/A Ensafe,131876,02/02/2012,10162678
Capital Program ,Bathroom Modifications,HIS01,Capital Contract Payments,5000,1255,Challen Commercial Investigations Ltd T/A Ensafe,131876,02/02/2012,10162678
Housing Revenue Account ,Unplanned Maintenance and Repair,UMR00,R&M External Contractors,100,491.26,Wilson Electrics,132051,02/02/2012,10162476
Housing Revenue Account ,Estate Management,MAN22,Movement Incentives,454,5000,REDACTED PERSONAL DATA,132321,09/02/2012,10162752
Economy Development & Culture,Car Parks General,CPK01,Other Agencies,734,84.5,Chipside Limited,133289,23/02/2012,10163319
Economy Development & Culture,Decrim. of Car Parking on street parking,DPE02,Other Agencies,734,338,Chipside Limited,133289,23/02/2012,10163319
Resources & Corporate Governance ,Highways,WHG00,Materials,303,423.85,Breedon Aggregates England Limited,133309,02/02/2012,10162571
Resources & Corporate Governance ,Highways,WHG00,Materials,303,430.77,Breedon Aggregates England Limited,133309,09/02/2012,10162783
Resources & Corporate Governance,Corporate Property R&M,CPA01,R&M External Contractors,100,826.41,Sunfish Services Ltd,133886,09/02/2012,10162799
Resources & Corporate Governance,Corporate Property R&M,CPA01,R&M External Contractors,100,4000,Sunfish Services Ltd,133886,09/02/2012,10163056
Housing Revenue Account ,Unplanned Maintenance and Repair,UMR00,R&M External Contractors,100,1855.46,Delec Ltd,133887,16/02/2012,10163277
Housing Revenue Account ,Estate Management,MAN22,Movement Incentives,454,55.65,Delec Ltd,133887,16/02/2012,10163277
Housing Revenue Account ,Unplanned Maintenance and Repair,UMR00,R&M External Contractors,100,2292.8,Delec Ltd,133887,16/02/2012,10163278
Housing Revenue Account ,Unplanned Maintenance and Repair,UMR00,R&M External Contractors,100,660.06,Delec Ltd,133887,16/02/2012,10163279
Housing Revenue Account ,Unplanned Maintenance and Repair,UMR00,R&M External Contractors,100,670.82,Delec Ltd,133887,23/02/2012,10163431
Housing Revenue Account ,Unplanned Maintenance and Repair,UMR00,R&M External Contractors,100,1551.86,Delec Ltd,133887,23/02/2012,10163599
Housing Revenue Account ,Frederick Press Way AP,AGP06,Electricity,130,-26.33,Southern Electric,135653,16/02/2012,10160888
Housing Revenue Account ,John Thwaites Close AP,AGP08,Electricity,130,122.01,Southern Electric,135653,16/02/2012,10160888
Housing Revenue Account ,Robotham Close AP,AGP11,Electricity,130,253.05,Southern Electric,135653,16/02/2012,10160888
Housing Revenue Account ,Stretton Court AP,AGP13,Electricity,130,262.85,Southern Electric,135653,16/02/2012,10160888
Housing Revenue Account ,Sun Street/Windsor Street AP,AGP14,Electricity,130,8.96,Southern Electric,135653,16/02/2012,10160888
Housing Revenue Account ,Lesley Souter House AP,AGP16,Electricity,130,860.37,Southern Electric,135653,16/02/2012,10160888
Housing Revenue Account ,Tanser Court AP,AGP17,Electricity,130,-1312.81,Southern Electric,135653,16/02/2012,10160888
Housing Revenue Account ,Eliot Court AP,AGP25,Electricity,130,-577.89,Southern Electric,135653,16/02/2012,10160888
Housing Revenue Account ,Hirst Close AP,AGP33,Electricity,130,211.99,Southern Electric,135653,16/02/2012,10160888
Housing Revenue Account ,Brookside Pailton AP,AGP40,Electricity,130,156.79,Southern Electric,135653,16/02/2012,10160888
Housing Revenue Account ,Deepmore Road/Lytham Road AP,AGP42,Electricity,130,-6.24,Southern Electric,135653,16/02/2012,10160888
Housing Revenue Account ,Great Balance Brinklow AP,AGP48,Electricity,130,73.43,Southern Electric,135653,16/02/2012,10160888
Housing Revenue Account ,Meadow Way/Primrose Court AP,AGP58,Electricity,130,134.11,Southern Electric,135653,16/02/2012,10160888
Housing Revenue Account ,Norman Road AP,AGP60,Electricity,130,21.23,Southern Electric,135653,16/02/2012,10160888
Housing Revenue Account ,Patterdale AP,AGP61,Electricity,130,715.1,Southern Electric,135653,16/02/2012,10160888
Housing Revenue Account ,Parkfield Road/Lea Crescent AP,AGP71,Electricity,130,211.12,Southern Electric,135653,16/02/2012,10160888
Housing Revenue Account ,Supervision and Management General,MAN00,Electricity,130,125.72,Southern Electric,135653,16/02/2012,10160888
Housing Revenue Account ,Multi-Storey Flats,MSF00,Electricity,130,-1773.99,Southern Electric,135653,16/02/2012,10160888
Housing Revenue Account ,Avon Court AP,AGP02,Electricity,130,509.21,Southern Electric,135653,16/02/2012,10163149
Housing Revenue Account ,Dickinson Court AP,AGP03,Electricity,130,641.44,Southern Electric,135653,16/02/2012,10163149
Housing Revenue Account ,Duffy Place AP,AGP04,Electricity,130,707.91,Southern Electric,135653,16/02/2012,10163149
Housing Revenue Account ,Frederick Press Way AP,AGP06,Electricity,130,3351.11,Southern Electric,135653,16/02/2012,10163149
Housing Revenue Account ,Mercer Court AP,AGP09,Electricity,130,312,Southern Electric,135653,16/02/2012,10163149
Housing Revenue Account ,Pettiver Crescent I AP,AGP10,Electricity,130,601.65,Southern Electric,135653,16/02/2012,10163149
Housing Revenue Account ,Stacey Court AP,AGP12,Electricity,130,34.1,Southern Electric,135653,16/02/2012,10163149
Housing Revenue Account ,Sun Street/Windsor Street AP,AGP14,Electricity,130,657.09,Southern Electric,135653,16/02/2012,10163149
Housing Revenue Account ,Lesley Souter House AP,AGP16,Electricity,130,62.92,Southern Electric,135653,16/02/2012,10163149
Housing Revenue Account ,Edward Court AP,AGP19,Electricity,130,648.4,Southern Electric,135653,16/02/2012,10163149
Housing Revenue Account ,Albert Square AP,AGP20,Electricity,130,2098.25,Southern Electric,135653,16/02/2012,10163149
Housing Revenue Account ,Eliot Court AP,AGP25,Electricity,130,-24.13,Southern Electric,135653,16/02/2012,10163149
Housing Revenue Account ,Clare Court Site,AGP27,Electricity,130,82.52,Southern Electric,135653,16/02/2012,10163149
Housing Revenue Account ,Alexandra/James Court AP,AGP30,Electricity,130,400.09,Southern Electric,135653,16/02/2012,10163149
Housing Revenue Account ,Assheton Close AP,AGP36,Electricity,130,-14.15,Southern Electric,135653,16/02/2012,10163149
Housing Revenue Account ,Clifton Road AP,AGP41,Electricity,130,73.52,Southern Electric,135653,16/02/2012,10163149
Housing Revenue Account ,Deepmore Road/Lytham Road AP,AGP42,Electricity,130,-20.09,Southern Electric,135653,16/02/2012,10163149
Housing Revenue Account ,Featherbed Lane I AP,AGP45,Electricity,130,551.47,Southern Electric,135653,16/02/2012,10163149
Housing Revenue Account ,Fox Close AP,AGP47,Electricity,130,94.38,Southern Electric,135653,16/02/2012,10163149
Housing Revenue Account ,Jackson Road I AP,AGP53,Electricity,130,54.31,Southern Electric,135653,16/02/2012,10163149
Housing Revenue Account ,Lever Road I AP,AGP57,Electricity,130,617.78,Southern Electric,135653,16/02/2012,10163149
Housing Revenue Account ,The Kent AP,AGP67,Electricity,130,96.21,Southern Electric,135653,16/02/2012,10163149
Housing Revenue Account ,Victoria Street/Lawford Road AP,AGP68,Electricity,130,29.04,Southern Electric,135653,16/02/2012,10163149
Housing Revenue Account ,Pennington Street/Round Street AP,AGP72,Electricity,130,324.25,Southern Electric,135653,16/02/2012,10163149
Housing Revenue Account ,Control Centre CCTV,CCE01,Electricity,130,311.54,Southern Electric,135653,16/02/2012,10163149
Housing Revenue Account ,Supervision and Management General,MAN00,Electricity,130,219.17,Southern Electric,135653,16/02/2012,10163149
Housing Revenue Account ,Multi-Storey Flats,MSF00,Electricity,130,5791.46,Southern Electric,135653,16/02/2012,10163149
Sustainable Inclusive Communities,Housing Benefit Administration,HBA00,Agency Staff,3,888,Morgan Hunt UK Ltd,136143,02/02/2012,10162492
Sustainable Inclusive Communities,Housing Benefit Administration,HBA00,Agency Staff,3,888,Morgan Hunt UK Ltd,136143,02/02/2012,10162493
Sustainable Inclusive Communities,Housing Benefit Administration,HBA00,Agency Staff,3,888,Morgan Hunt UK Ltd,136143,09/02/2012,10162810
Sustainable Inclusive Communities,Housing Benefit Administration,HBA00,Agency Staff,3,888,Morgan Hunt UK Ltd,136143,09/02/2012,10162811
Sustainable Inclusive Communities,Housing Benefit Administration,HBA00,Agency Staff,3,840,Morgan Hunt UK Ltd,136143,09/02/2012,10163105
Sustainable Inclusive Communities,Housing Benefit Administration,HBA00,Agency Staff,3,3658.23,Morgan Hunt UK Ltd,136143,16/02/2012,10163120
Sustainable Inclusive Communities,Housing Benefit Administration,HBA00,Agency Staff,3,3658.23,Morgan Hunt UK Ltd,136143,16/02/2012,10163121
,Balance Sheet,BS,Car Leasing Scheme,9244,1322.81,GE Commercial Finance (Custom Fleet),137111,16/02/2012,10161442
,Balance Sheet,BS,Car Leasing Scheme,9244,1123.5,GE Commercial Finance (Custom Fleet),137111,16/02/2012,10161443
,Balance Sheet,BS,Car Leasing Scheme,9244,-621.57,GE Commercial Finance (Custom Fleet),137111,16/02/2012,10163005
,Balance Sheet,BS,Car Leasing Scheme,9244,1012.02,GE Commercial Finance (Custom Fleet),137111,16/02/2012,10163104
Sustainable Environment ,Violence,CAD01,Development Activities,450,850,Solon Security Ltd,137493,02/02/2012,10162246
Sustainable Environment ,Violence,CAD01,Development Activities,450,649,Solon Security Ltd,137493,23/02/2012,10163457
Capital Program ,Youth Club Development,CGR05,Capital Grants,5014,2840,The Bradby Club,138171,09/02/2012,10163035
Resources & Corporate Governance ,Town Hall,OFF00,Contract Cleaning,170,4588.74,Regent Office Care Ltd T/A Regent Cleaning,138934,16/02/2012,10163130
Resources & Corporate Governance ,WSU Depot,WDP00,Contract Cleaning,170,219,Regent Office Care Ltd T/A Regent Cleaning,138934,16/02/2012,10163130
Resources & Corporate Governance ,Grounds Maintenance,WGM00,Contract Cleaning,170,147.5,Regent Office Care Ltd T/A Regent Cleaning,138934,16/02/2012,10163130
Housing Revenue Account ,Unplanned Maintenance and Repair,UMR00,R&M External Contractors,100,3101.04,Regent Office Care Ltd T/A Regent Cleaning,138934,16/02/2012,10163276
Housing Revenue Account ,Unplanned Maintenance and Repair,UMR00,R&M External Contractors,100,2210.63,Regent Office Care Ltd T/A Regent Cleaning,138934,23/02/2012,10163429
Resources & Corporate Governance ,Grounds Maintenance,WGM00,External Contractor & Operator,742,640,D J Whitlock Plant Hire,140156,09/02/2012,10162798
Housing Revenue Account ,Estate Management,MAN22,Movement Incentives,454,5474.4,REDACTED PERSONAL DATA,140389,02/02/2012,10162751
Housing Revenue Account ,Unplanned Maintenance and Repair,UMR00,R&M External Contractors,100,1775.16,J Murphy and Sons Ltd,140688,02/02/2012,10162502
Resources & Corporate Governance ,IT Procurement,CMP00,IT Capital Expenditure,5025,1142,Zen Internet Ltd,141612,23/02/2012,10163397
Capital Program ,Kitchen Modifications,HIK10,Capital Contract Payments,5000,21432,Ian Williams Ltd,142238,02/02/2012,10161238
Capital Program ,Rugby Plus Project,RBC00,Capital Contract Payments,5000,2147.26,Ian Williams Ltd,142238,16/02/2012,10162500
Capital Program ,Rugby Plus Project,RBC00,Capital Contract Payments,5000,4595.84,Ian Williams Ltd,142238,16/02/2012,10162504
Capital Program ,Youth Club Development,CGR05,Capital Grants,5014,2130,Coventry & Warwickshire YMCA,142364,09/02/2012,10163073
Resources & Corporate Governance ,General Financial Services,GFS00,External Contractor & Operator,742,6306.67,Local Government Association,144471,02/02/2012,10162202
Economy Development & Culture,Car Parks General,CPK01,Other Agencies,734,317.07,PATROL,144963,23/02/2012,10163330
Economy Development & Culture,Decrim. of Car Parking on street parking,DPE02,Other Agencies,734,1268.28,PATROL,144963,23/02/2012,10163330
Housing Revenue Account ,Control Centre CCTV,CCE01,External Contractor & Operator,742,15432.24,Securitas Security Personnel Ltd,145079,23/02/2012,10163384
Housing Revenue Account ,Property Maintenance,MAN23,Agency Staff,3,840.9,James Andrews Recruitment Solutions Ltd,145100,02/02/2012,10162172
Housing Revenue Account ,Supervision and Management General,MAN00,Agency Staff,3,870,James Andrews Recruitment Solutions Ltd,145100,02/02/2012,10162405
Sustainable Inclusive Communities,Housing Strategy & Enabling,HSE00,Agency Staff,3,492.1,James Andrews Recruitment Solutions Ltd,145100,02/02/2012,10162487
Sustainable Inclusive Communities,Housing Strategy & Enabling,HSE00,Agency Staff,3,463.98,James Andrews Recruitment Solutions Ltd,145100,02/02/2012,10162488
Sustainable Inclusive Communities,Housing Strategy & Enabling,HSE00,Agency Staff,3,435.86,James Andrews Recruitment Solutions Ltd,145100,02/02/2012,10162489
Housing Revenue Account ,Property Maintenance,MAN23,Agency Staff,3,870,James Andrews Recruitment Solutions Ltd,145100,09/02/2012,10162831
Housing Revenue Account ,Property Maintenance,MAN23,Agency Staff,3,997.13,James Andrews Recruitment Solutions Ltd,145100,09/02/2012,10162832
Housing Revenue Account ,Property Maintenance,MAN23,Agency Staff,3,997.13,James Andrews Recruitment Solutions Ltd,145100,09/02/2012,10162834
Housing Revenue Account ,Property Maintenance,MAN23,Agency Staff,3,997.13,James Andrews Recruitment Solutions Ltd,145100,09/02/2012,10162835
Housing Revenue Account ,Property Maintenance,MAN23,Agency Staff,3,997.13,James Andrews Recruitment Solutions Ltd,145100,09/02/2012,10162836
Housing Revenue Account ,Property Maintenance,MAN23,Agency Staff,3,1012.43,James Andrews Recruitment Solutions Ltd,145100,09/02/2012,10162837
Housing Revenue Account ,Property Maintenance,MAN23,Agency Staff,3,1145.5,James Andrews Recruitment Solutions Ltd,145100,09/02/2012,10162946
Housing Revenue Account ,Property Maintenance,MAN23,Agency Staff,3,945,James Andrews Recruitment Solutions Ltd,145100,09/02/2012,10162947
Housing Revenue Account ,Property Maintenance,MAN23,Agency Staff,3,943.95,James Andrews Recruitment Solutions Ltd,145100,16/02/2012,10163069
Housing Revenue Account ,Property Maintenance,MAN23,Agency Staff,3,1189,James Andrews Recruitment Solutions Ltd,145100,16/02/2012,10163070
Housing Revenue Account ,Property Maintenance,MAN23,Agency Staff,3,1018.28,James Andrews Recruitment Solutions Ltd,145100,16/02/2012,10163380
Housing Revenue Account ,Property Maintenance,MAN23,Agency Staff,3,1110,James Andrews Recruitment Solutions Ltd,145100,16/02/2012,10163381
Housing Revenue Account ,Property Maintenance,MAN23,Agency Staff,3,973.5,James Andrews Recruitment Solutions Ltd,145100,16/02/2012,10163382
Resources & Corporate Governance ,General Financial Services,GFS00,External Contractor & Operator,742,2000,LAVAT Consulting Limited,145204,02/02/2012,10162491
Capital Program ,Concrete Retaining Bay,RCY04,Capital Contract Payments,5000,3850,Postlethwaite,145230,23/02/2012,10163407
Resources & Corporate Governance ,Highways,WHG00,External Contractor & Operator,742,800,Postlethwaite,145230,23/02/2012,10163408
Resources & Corporate Governance ,Street Cleansing,WSC00,Agency Staff,3,665,Blue Arrow Limited,145492,16/02/2012,10162951
Resources & Corporate Governance ,Street Cleansing,WSC00,Agency Staff,3,300,Blue Arrow Limited,145492,23/02/2012,10163530
Resources & Corporate Governance ,Domestic Waste Collection,WWC00,Agency Staff,3,199.71,Blue Arrow Limited,145492,23/02/2012,10163530
Sustainable Environment ,Communities Against Drugs,CAD00,Development Activities,450,1000,Montgomery Est Marketing Ltd,145770,09/02/2012,10162766
Capital Program ,Open Spaces Refurbishment,LEI08,Capital Contract Payments,5000,8196.93,Pro-Teq Surfacing (UK) Ltd,145825,23/02/2012,10163305
Resources & Corporate Governance ,Highways,WHG00,Materials,303,459.54,Midland Rock Leicester Ltd,145830,09/02/2012,10162772
Housing Revenue Account ,Estate Management,MAN22,Movement Incentives,454,5700,REDACTED PERSONAL DATA,146312,02/02/2012,10162753
Resources & Corporate Governance ,Human Resources Centralised Services,RES31,Training fees,11,695,Serco Ltd,146371,16/02/2012,10163299
Resources & Corporate Governance ,Human Resources Centralised Services,RES31,Training fees,11,695,Serco Ltd,146371,16/02/2012,10163300
Resources & Corporate Governance ,Human Resources Centralised Services,RES31,Training fees,11,695,Serco Ltd,146371,16/02/2012,10163301
Resources & Corporate Governance,Handy man,WHM00,Agency Staff,3,462.41,Fresh Recruitment Solutions (FRS) Ltd,146784,02/02/2012,10162625
Resources & Corporate Governance,Handy man,WHM00,Agency Staff,3,451.96,Fresh Recruitment Solutions (FRS) Ltd,146784,16/02/2012,10163084
Resources & Corporate Governance ,Domestic Waste Collection,WWC00,Agency Staff,3,334.4,Fresh Recruitment Solutions (FRS) Ltd,146784,16/02/2012,10163085
Resources & Corporate Governance ,Trade Waste Collection,WWC01,Agency Staff,3,83.6,Fresh Recruitment Solutions (FRS) Ltd,146784,16/02/2012,10163085
Resources & Corporate Governance,Handy man,WHM00,Agency Staff,3,519.89,Fresh Recruitment Solutions (FRS) Ltd,146784,23/02/2012,10163346
Resources & Corporate Governance,Corporate Property R&M,CPA01,R&M External Contractors,100,819.55,Environmental Essentials Ltd,146842,02/02/2012,10162238
Resources & Corporate Governance ,Retired Employees,RET00,Additional Pension Payments,14,11185.78,WCC Pension Fund,146914,02/02/2012,10162667
Resources & Corporate Governance ,Retired Employees,RET00,Additional Pension Payments,14,560.81,WCC Pension Fund,146914,16/02/2012,10163204
Resources & Corporate Governance ,Retired Employees,RET00,Additional Pension Payments,14,11185.78,WCC Pension Fund,146914,16/02/2012,10163314
Sustainable Inclusive Communities,Woodside Park,TVR00,R&M External Contractors,100,891.72,Allgas and Property Development,146937,09/02/2012,10162499
Economy Development & Culture,Art Gallery and Museum,AGM00,Postage & Distribution,370,118.18,TNT Post Midlands Ltd,146983,02/02/2012,10162320
Resources & Corporate Governance,Central Business Support Services,CSS15,Postage & Distribution,370,67.05,TNT Post Midlands Ltd,146983,02/02/2012,10162320
Resources & Corporate Governance ,Council Tax and NNDR Collection,CTX01,Postage & Distribution,370,196.79,TNT Post Midlands Ltd,146983,02/02/2012,10162320
Resources & Corporate Governance ,Electoral Registration,ERG00,Postage & Distribution,370,20.06,TNT Post Midlands Ltd,146983,02/02/2012,10162320
Sustainable Inclusive Communities,Housing Benefit Administration,HBA00,Postage & Distribution,370,85.38,TNT Post Midlands Ltd,146983,02/02/2012,10162320
Housing Revenue Account ,Supervision and Management General,MAN00,Postage & Distribution,370,1087.21,TNT Post Midlands Ltd,146983,02/02/2012,10162320
Economy Development & Culture,Planning General/Income,PLN00,Postage & Distribution,370,8.4,TNT Post Midlands Ltd,146983,02/02/2012,10162320
Resources & Corporate Governance ,General Administration,WAD00,Postage & Distribution,370,1.9,TNT Post Midlands Ltd,146983,02/02/2012,10162320
Economy Development & Culture,Building Control Services,BCS00,Postage & Distribution,370,3.21,TNT Post Midlands Ltd,146983,16/02/2012,10162784
Economy Development & Culture,Building Regulation Fee Earning Account,BCS99,Postage & Distribution,370,4.25,TNT Post Midlands Ltd,146983,16/02/2012,10162784
Resources & Corporate Governance,Central Business Support Services,CSS15,Postage & Distribution,370,28.35,TNT Post Midlands Ltd,146983,16/02/2012,10162784
Resources & Corporate Governance ,Council Tax and NNDR Collection,CTX01,Postage & Distribution,370,227.34,TNT Post Midlands Ltd,146983,16/02/2012,10162784
Resources & Corporate Governance ,Electoral Registration,ERG00,Postage & Distribution,370,13.89,TNT Post Midlands Ltd,146983,16/02/2012,10162784
Sustainable Inclusive Communities,Housing Benefit Administration,HBA00,Postage & Distribution,370,137.2,TNT Post Midlands Ltd,146983,16/02/2012,10162784
Housing Revenue Account ,Supervision and Management General,MAN00,Postage & Distribution,370,48.19,TNT Post Midlands Ltd,146983,16/02/2012,10162784
Economy Development & Culture,Planning General/Income,PLN00,Postage & Distribution,370,14.17,TNT Post Midlands Ltd,146983,16/02/2012,10162784
Resources & Corporate Governance ,General Administration,WAD00,Postage & Distribution,370,2.83,TNT Post Midlands Ltd,146983,16/02/2012,10162784
Economy Development & Culture,Art Gallery and Museum,AGM00,Postage & Distribution,370,0.27,TNT Post Midlands Ltd,146983,16/02/2012,10162958
Economy Development & Culture,Building Control Services,BCS00,Postage & Distribution,370,0.9,TNT Post Midlands Ltd,146983,16/02/2012,10162958
Economy Development & Culture,Building Regulation Fee Earning Account,BCS99,Postage & Distribution,370,1.2,TNT Post Midlands Ltd,146983,16/02/2012,10162958
Resources & Corporate Governance,Central Business Support Services,CSS15,Postage & Distribution,370,34.9,TNT Post Midlands Ltd,146983,16/02/2012,10162958
Resources & Corporate Governance ,Council Tax and NNDR Collection,CTX01,Postage & Distribution,370,278.85,TNT Post Midlands Ltd,146983,16/02/2012,10162958
Resources & Corporate Governance ,Electoral Registration,ERG00,Postage & Distribution,370,286.72,TNT Post Midlands Ltd,146983,16/02/2012,10162958
Sustainable Inclusive Communities,Housing Benefit Administration,HBA00,Postage & Distribution,370,134.95,TNT Post Midlands Ltd,146983,16/02/2012,10162958
Housing Revenue Account ,Supervision and Management General,MAN00,Postage & Distribution,370,65.98,TNT Post Midlands Ltd,146983,16/02/2012,10162958
Economy Development & Culture,Planning General/Income,PLN00,Postage & Distribution,370,15.21,TNT Post Midlands Ltd,146983,16/02/2012,10162958
Resources & Corporate Governance ,General Administration,WAD00,Postage & Distribution,370,1.63,TNT Post Midlands Ltd,146983,16/02/2012,10162958
Economy Development & Culture,Art Gallery and Museum,AGM00,Postage & Distribution,370,108.51,TNT Post Midlands Ltd,146983,16/02/2012,10163059
Economy Development & Culture,Building Control Services,BCS00,Postage & Distribution,370,1.37,TNT Post Midlands Ltd,146983,16/02/2012,10163059
Economy Development & Culture,Building Regulation Fee Earning Account,BCS99,Postage & Distribution,370,1.82,TNT Post Midlands Ltd,146983,16/02/2012,10163059
Resources & Corporate Governance,Central Business Support Services,CSS15,Postage & Distribution,370,61.24,TNT Post Midlands Ltd,146983,16/02/2012,10163059
Resources & Corporate Governance ,Council Tax and NNDR Collection,CTX01,Postage & Distribution,370,208.51,TNT Post Midlands Ltd,146983,16/02/2012,10163059
Resources & Corporate Governance ,Electoral Registration,ERG00,Postage & Distribution,370,72.94,TNT Post Midlands Ltd,146983,16/02/2012,10163059
Sustainable Inclusive Communities,Housing Benefit Administration,HBA00,Postage & Distribution,370,126.81,TNT Post Midlands Ltd,146983,16/02/2012,10163059
Housing Revenue Account ,Supervision and Management General,MAN00,Postage & Distribution,370,139.95,TNT Post Midlands Ltd,146983,16/02/2012,10163059
Economy Development & Culture,Planning General/Income,PLN00,Postage & Distribution,370,10.31,TNT Post Midlands Ltd,146983,16/02/2012,10163059
Resources & Corporate Governance ,General Administration,WAD00,Postage & Distribution,370,1.29,TNT Post Midlands Ltd,146983,16/02/2012,10163059
Economy Development & Culture,Art Gallery and Museum,AGM00,Postage & Distribution,370,12.6,TNT Post Midlands Ltd,146983,23/02/2012,10163376
Economy Development & Culture,Building Control Services,BCS00,Postage & Distribution,370,4.08,TNT Post Midlands Ltd,146983,23/02/2012,10163376
Economy Development & Culture,Building Regulation Fee Earning Account,BCS99,Postage & Distribution,370,5.4,TNT Post Midlands Ltd,146983,23/02/2012,10163376
Resources & Corporate Governance,Central Business Support Services,CSS15,Postage & Distribution,370,33.57,TNT Post Midlands Ltd,146983,23/02/2012,10163376
Resources & Corporate Governance ,Council Tax and NNDR Collection,CTX01,Postage & Distribution,370,297.54,TNT Post Midlands Ltd,146983,23/02/2012,10163376
Resources & Corporate Governance ,Electoral Registration,ERG00,Postage & Distribution,370,511.01,TNT Post Midlands Ltd,146983,23/02/2012,10163376
Sustainable Inclusive Communities,Housing Benefit Administration,HBA00,Postage & Distribution,370,137.63,TNT Post Midlands Ltd,146983,23/02/2012,10163376
Housing Revenue Account ,Supervision and Management General,MAN00,Postage & Distribution,370,42.16,TNT Post Midlands Ltd,146983,23/02/2012,10163376
Economy Development & Culture,Planning General/Income,PLN00,Postage & Distribution,370,32.23,TNT Post Midlands Ltd,146983,23/02/2012,10163376
Resources & Corporate Governance ,General Administration,WAD00,Postage & Distribution,370,24.71,TNT Post Midlands Ltd,146983,23/02/2012,10163376
Resources & Corporate Governance ,Town Hall,OFF00,New Equipment,300,5000,Britcab Limited,146988,16/02/2012,10163318
Housing Revenue Account ,Unplanned Maintenance and Repair,UMR00,R&M External Contractors,100,1246,T. Clarke East Ltd,147073,02/02/2012,10162475
Housing Revenue Account ,Unplanned Maintenance and Repair,UMR00,R&M External Contractors,100,1430.15,T. Clarke East Ltd,147073,23/02/2012,10163430
Housing Revenue Account ,Unplanned Maintenance and Repair,UMR00,R&M External Contractors,100,1018.6,T. Clarke East Ltd,147073,23/02/2012,10163439
Housing Revenue Account ,Estate Management,MAN22,Movement Incentives,454,371.51,T. Clarke East Ltd,147073,23/02/2012,10163439
Housing Revenue Account ,Unplanned Maintenance and Repair,UMR00,R&M External Contractors,100,874.94,T. Clarke East Ltd,147073,23/02/2012,10163440
Capital Program ,Disabled Adaptations,HCR01,Capital Contract Payments,5000,86.91,T. Clarke East Ltd,147073,23/02/2012,10163440
Housing Revenue Account ,Unplanned Maintenance and Repair,UMR00,R&M External Contractors,100,1225.28,Alpha Electrical Midlands Ltd,147074,16/02/2012,10163287
Housing Revenue Account ,Unplanned Maintenance and Repair,UMR00,R&M External Contractors,100,673.49,Alpha Electrical Midlands Ltd,147074,16/02/2012,10163288
Housing Revenue Account ,Unplanned Maintenance and Repair,UMR00,R&M External Contractors,100,646.96,Alpha Electrical Midlands Ltd,147074,16/02/2012,10163289
Housing Revenue Account ,Unplanned Maintenance and Repair,UMR00,R&M External Contractors,100,524.55,Alpha Electrical Midlands Ltd,147074,23/02/2012,10163570
Capital Program ,Kitchen Modifications,HIK10,Capital Contract Payments,5000,31800,CLC Contractors Ltd,147076,16/02/2012,10162057
Housing Revenue Account ,Unplanned Maintenance and Repair,UMR00,R&M External Contractors,100,890.39,CLC Contractors Ltd,147076,02/02/2012,10162408
Housing Revenue Account ,Unplanned Maintenance and Repair,UMR00,R&M External Contractors,100,1341.05,CLC Contractors Ltd,147076,09/02/2012,10162409
Housing Revenue Account ,Unplanned Maintenance and Repair,UMR00,R&M External Contractors,100,552.6,CLC Contractors Ltd,147076,09/02/2012,10162410
Housing Revenue Account ,Unplanned Maintenance and Repair,UMR00,R&M External Contractors,100,2065.66,CLC Contractors Ltd,147076,23/02/2012,10163428
Housing Revenue Account ,Unplanned Maintenance and Repair,UMR00,R&M External Contractors,100,552.6,CLC Contractors Ltd,147076,23/02/2012,10163432
Housing Revenue Account ,Unplanned Maintenance and Repair,UMR00,R&M External Contractors,100,890.39,CLC Contractors Ltd,147076,23/02/2012,10163433
Housing Revenue Account ,Control Centre CCTV,CCE01,Maintenance of Equipment,301,914.91,Delaware Communications plc,147077,02/02/2012,10162382
Housing Revenue Account ,Gas Heating Systems,UMR01,R&M External Contractors,100,14895.85,Integral UK Ltd,147080,02/02/2012,10162459
Housing Revenue Account ,Unplanned Maintenance and Repair,UMR00,R&M External Contractors,100,872.7,Integral UK Ltd,147080,09/02/2012,10162828
Housing Revenue Account ,Gas Heating Systems,UMR01,R&M External Contractors,100,330,Integral UK Ltd,147080,09/02/2012,10162828
Capital Program ,KMLC Capital Schemes,LEI03,Capital Contract Payments,5000,27934.5,B3 Architects,147190,16/02/2012,10162819
Capital Program ,KMLC Capital Schemes,LEI03,Capital Contract Payments,5000,3500,B3 Architects,147190,23/02/2012,10163385
Resources & Corporate Governance,Handy man,WHM00,Materials,303,1525.1,ECA Supplies (Coventry) Limited,147276,23/02/2012,10162887
Resources & Corporate Governance,Handy man,WHM00,Materials,303,1191.35,ECA Supplies (Coventry) Limited,147276,23/02/2012,10162890
Resources & Corporate Governance,Housing Fencing,WFE00,External Contractor & Operator,742,980,Stephen Lamb Fencing,147298,02/02/2012,10162618
Resources & Corporate Governance,Housing Fencing,WFE00,External Contractor & Operator,742,1064,Stephen Lamb Fencing,147298,09/02/2012,10163083
Resources & Corporate Governance ,WSU Depot,WDP00,External Contractor & Operator,742,646.66,Stewart Groom Flooring,147316,23/02/2012,10162531
Capital Program ,Heating Upgrades,HIM01,Capital Contract Payments,5000,15846.36,Liberty Gas Group,147368,16/02/2012,10161068
Capital Program ,Heating Upgrades,HIM01,Capital Contract Payments,5000,21128.48,Liberty Gas Group,147368,16/02/2012,10161906
Resources & Corporate Governance ,Domestic Waste Collection,WWC00,Contract Hire,220,1450,Trash UK Limited,147379,09/02/2012,10162867
Housing Revenue Account ,Unplanned Maintenance and Repair,UMR00,R&M External Contractors,100,763,Howard Ward Associates LLP,147433,02/02/2012,10162597
Capital Program ,Kitchen Modifications,HIK10,Capital Contract Payments,5000,10522.93,Rixonway Kitchens Ltd,147446,09/02/2012,10161155
Capital Program ,Kitchen Modifications,HIK10,Capital Contract Payments,5000,4476.95,Rixonway Kitchens Ltd,147446,09/02/2012,10161338
Capital Program ,Kitchen Modifications,HIK10,Capital Contract Payments,5000,5291.45,Rixonway Kitchens Ltd,147446,09/02/2012,10161681
Capital Program ,Kitchen Modifications,HIK10,Capital Contract Payments,5000,6378.01,Rixonway Kitchens Ltd,147446,09/02/2012,10161731
Capital Program ,Kitchen Modifications,HIK10,Capital Contract Payments,5000,1324.14,Rixonway Kitchens Ltd,147446,09/02/2012,10162271
Capital Program ,Kitchen Modifications,HIK10,Capital Contract Payments,5000,3880.95,Rixonway Kitchens Ltd,147446,09/02/2012,10162272
Capital Program ,Kitchen Modifications,HIK10,Capital Contract Payments,5000,17124.2,Rixonway Kitchens Ltd,147446,16/02/2012,10162552
Capital Program ,Kitchen Modifications,HIK10,Capital Contract Payments,5000,443.41,Rixonway Kitchens Ltd,147446,16/02/2012,10162818
Capital Program ,Kitchen Modifications,HIK10,Capital Contract Payments,5000,8022.09,Rixonway Kitchens Ltd,147446,23/02/2012,10163034
Resources & Corporate Governance ,Human Resources Centralised Services,RES31,Training fees,11,1500,John Matchett Limited,147447,02/02/2012,10162469
Resources & Corporate Governance ,Human Resources Centralised Services,RES31,Training fees,11,1500,John Matchett Limited,147447,02/02/2012,10162470
Housing Revenue Account ,Unplanned Maintenance and Repair,UMR00,R&M External Contractors,100,916.91,SB Maintenance,147467,23/02/2012,10163601
Resources & Corporate Governance,Handy man,WHM00,Materials,303,867.89,Robert Pochin Limited,147536,16/02/2012,10162790
Resources & Corporate Governance,Handy man,WHM00,Materials,303,639.79,Robert Pochin Limited,147536,23/02/2012,10163416
Resources & Corporate Governance,Handy man,WHM00,Materials,303,492.36,Robert Pochin Limited,147536,23/02/2012,10163417
Capital Program ,RG Disabled Facilities,REN01,Capital Grants,5014,2000,Pollards Property Solution,147541,09/02/2012,10162814
Capital Program ,RG Disabled Facilities,REN01,Capital Grants,5014,1844,Pollards Property Solution,147541,09/02/2012,10162815
Resources & Corporate Governance,Corporate Property R&M,CPA01,R&M External Contractors,100,2220,Clouds Environmental Consultancy Ltd,147619,16/02/2012,10161894
Housing Revenue Account ,Unplanned Maintenance and Repair,UMR00,R&M External Contractors,100,255,Clouds Environmental Consultancy Ltd,147619,16/02/2012,10161894
Resources & Corporate Governance ,Civic Responsibilities,CIV00,Training fees,11,995,LG Futures Ltd,147641,23/02/2012,10163493
Resources & Corporate Governance ,Civic Responsibilities,CIV00,Other Miscellaneous Expenses,444,112.2,LG Futures Ltd,147641,23/02/2012,10163493
Sustainable Environment,Regulatory Services,REG00,External Legal Costs,741,400,John Partridge,147751,02/02/2012,10162742
Resources & Corporate Governance,Handy man,WHM00,External Contractor & Operator,742,600,David Norton General Builder,147755,09/02/2012,10163081
Resources & Corporate Governance,Handy man,WHM00,External Contractor & Operator,742,600,David Norton General Builder,147755,16/02/2012,10163345
Resources & Corporate Governance,Handy man,WHM00,External Contractor & Operator,742,600,David Norton General Builder,147755,23/02/2012,10163679
Resources & Corporate Governance ,Grounds Maintenance,WGM00,Tools,304,922,Chris Tallis Farm Machinery Limited,147758,02/02/2012,10161951
Resources & Corporate Governance ,Grounds Maintenance,WGM00,Vehicle Repair and Maintenance,200,623.08,Chris Tallis Farm Machinery Limited,147758,09/02/2012,10162929
Resources & Corporate Governance ,Grounds Maintenance,WGM00,Vehicle Repair and Maintenance,200,1199.24,Chris Tallis Farm Machinery Limited,147758,16/02/2012,10162978
Sustainable Environment ,Recreation Grounds/Open Spaces,PKS01,External Contractor & Operator,742,562.5,Dave Bowcutt,147760,09/02/2012,10162805
Capital Program ,Viaduct Cycleways,CYC02,Capital Contract Payments,5000,59521.53,Currall Lewis & Martin (Construction) Ltd,147769,16/02/2012,10163138
Resources & Corporate Governance ,"Communications, Consultation and Information Team",BTR20,Consultation,378,1645.49,Hampshire Flag Company,147771,09/02/2012,10162870
Housing Revenue Account ,Estate Management,MAN22,Movement Incentives,454,5507.8,REDACTED PERSONAL DATA,147776,02/02/2012,10162507
Capital Program ,Parish Capital Spending Fund,CGR03,Capital Grants,5014,39000,Churchover Parish Council,147782,02/02/2012,10161867
Resources & Corporate Governance ,Human Resources Centralised Services,RES31,Training fees,11,6900,University Of Leicester,147786,02/02/2012,10162683
Housing Revenue Account ,Estate Management,MAN22,Movement Incentives,454,5686.66,REDACTED PERSONAL DATA,147814,02/02/2012,10162508
Housing Revenue Account ,Estate Management,MAN22,Movement Incentives,454,3746.2,REDACTED PERSONAL DATA,147821,02/02/2012,10162537
Housing Revenue Account ,Estate Management,MAN22,Movement Incentives,454,1000,REDACTED PERSONAL DATA,147822,02/02/2012,10162551
Sustainable Environment,Regulatory Services,REG00,External Contractor & Operator,742,750,CS Labels Ltd,147823,23/02/2012,10163558
Resources & Corporate Governance ,Human Resources Centralised Services,RES31,Training fees,11,1228.25,IRM UK Strategic IT Training Ltd,147833,02/02/2012,10162681
Housing Revenue Account ,Estate Management,MAN22,Movement Incentives,454,4700,REDACTED PERSONAL DATA,147837,23/02/2012,10163463
Resources & Corporate Governance,Corporate Property R&M,CPA01,R&M External Contractors,100,650,Safe Hands Contract Services,147838,16/02/2012,10163208
Economy Development & Culture,AGM Exhibitions/Outreach,AGM02,Other Miscellaneous Expenses,444,1150,Southbank Centre,147839,09/02/2012,10162749
Resources & Corporate Governance,Corporate Property R&M,CPA01,R&M External Contractors,100,1563,7 PDS,147840,16/02/2012,10162754
Resources & Corporate Governance ,General Financial Services,GFS00,External Contractor & Operator,742,8169.86,Tradition (UK) Ltd,147842,16/02/2012,10162830
Housing Revenue Account ,Estate Management,MAN22,Movement Incentives,454,1000,REDACTED PERSONAL DATA,147851,09/02/2012,10163044
Sustainable Environment ,Recreation Grounds/Open Spaces,PKS01,External Legal Costs,741,450,Jonathan Gidney,147853,16/02/2012,10163078
Capital Program ,Youth Club Development,CGR05,Capital Grants,5014,3520.18,Safeline Warwick,147855,09/02/2012,10163071
Resources & Corporate Governance ,"Communications, Consultation and Information Team",BTR20,Publicity & Marketing,377,4000,Cole Creative Communications Ltd,147857,23/02/2012,10163399
Capital Program ,Depot and Recycling Improvements,RCY02,Capital Contract Payments,5000,530.01,L & D Supplies Limited,147859,16/02/2012,10163303
Sustainable Inclusive Communities,CL Grants,CGS00,Grants To Voluntary Organisations,720,8000,Shilton Lane Allotment Association,147861,16/02/2012,10163115
Capital Program ,Town Centre Redevelopments,TCR00,Capital Contract Payments,5000,8760,Smith Partnership Solicitors,147872,23/02/2012,10163341
,Balance Sheet,BS,Car Loan Scheme,9261,6884,Evans Halshaw Ford Wolves,147873,16/02/2012,10163337
Housing Revenue Account ,Estate Management,MAN22,Movement Incentives,454,1000,REDACTED PERSONAL DATA,147878,16/02/2012,10163398
Resources & Corporate Governance ,Financial Services,GFS00,Payment Card Costs,445,880.83,Capita Charges ,,27/02/2012,
,Balance Sheet,BS,Contributions To NNDR Pool,9476,382471,Department for Communities & Local Govt,,02/02/2012,
,Balance Sheet,BS,Contributions To NNDR Pool,9476,382472,Department for Communities & Local Govt,,22/02/2012,
